fUST/lending_fUST_20240906
["ID","MTS","AMOUNT","RATE_DAILY","PERIOD"]
[337304366,1725589840934,-557.11043173,0.00020796,2]
[337304367,1725589840943,-501.64802649,0.00020796,2]
[337304368,1725589840953,-504.44481954,0.00020796,2]
[337304369,1725589840962,-761.4,0.00020796,2]
[337304370,1725589840971,-529.37795695,0.00020796,2]
[337304371,1725589840981,-556.96049972,0.00020796,2]
[337304372,1725589840990,-503.61248677,0.00020796,2]
[337304373,1725589841000,-506.18865764,0.00020796,2]
[337304374,1725589841009,-210.53114992,0.00020796,2]
[337304375,1725589841019,-500.0,0.00020796,2]
[337304376,1725589841028,-503.83590629,0.00020796,2]
[337304377,1725589841037,-500.0,0.00020796,2]
[337304378,1725589841046,-500.0,0.00020796,2]
[337304379,1725589841057,-500.0,0.00020796,2]
[337304380,1725589841066,-500.0,0.00020796,2]
[337304381,1725589841075,-520.15817091,0.00020796,2]
[337304382,1725589841084,-500.0,0.00020796,2]
[337304383,1725589841094,-500.0,0.00020796,2]
[337304384,1725589841103,-527.08395153,0.00020796,2]
[337304385,1725589841113,-505.84,0.00020796,2]
[337304386,1725589841124,-504.83279475,0.00020796,2]
[337304387,1725589841142,-500.0,0.00020796,2]
[337304388,1725589841151,-506.0679091,0.00020796,2]
[337304389,1725589841160,-730.74581543,0.00020936,2]
[337304390,1725589841169,-854.7224947,0.00020945,2]
[337304391,1725589841178,-178.197104,0.00020978,2]
[337304392,1725589841187,-73572.04766,0.0002098,3]
[337304393,1725589841196,-236.772715,0.00020986,2]
[337304394,1725589841205,-1744.55,0.00020989,2]
[337304395,1725589841214,-1744.55,0.00020989,2]
[337304396,1725589841223,-1744.55,0.00020989,2]
[337304397,1725589841232,-1744.55,0.00020989,2]
[337304398,1725589841241,-500.0,0.00020999,2]
[337304399,1725589841250,-500.0,0.00020999,2]
[337304400,1725589841260,-500.0,0.00020999,2]
[337304401,1725589841270,-504.72078525,0.00020999,2]
[337304402,1725589841281,-500.0,0.00020999,2]
[337304403,1725589841291,-11481.0,0.00021,2]
[337304404,1725589841301,-73572.04766,0.00021022,3]
[337304405,1725589841311,-205.530515,0.00021025,2]
[337304406,1725589841321,-73572.04766,0.00021026,3]
[337304407,1725589841331,-1744.55,0.00021033,2]
[337304408,1725589841341,-1744.55,0.00021034,2]
[337304409,1725589841350,-1744.55,0.00021034,2]
[337304410,1725589841361,-1744.55,0.00021035,2]
[337304411,1725589841373,-1744.55,0.00021035,2]
[337304412,1725589841382,-1744.55,0.00021035,2]
[337304413,1725589841392,-1744.55,0.00021035,2]
[337304414,1725589841402,-1744.55,0.00021035,2]
[337304415,1725589841411,-151.375171,0.00021036,2]
[337304416,1725589841420,-151.0,0.00021036,2]
[337304417,1725589841430,-151.0,0.00021036,2]
[337304418,1725589841439,-151.0,0.00021036,2]
[337304419,1725589841448,-151.0,0.00021036,2]
[337304420,1725589841457,-151.0,0.00021036,2]
[337304421,1725589841467,-151.0,0.00021036,2]
[337304422,1725589841477,-151.0,0.00021036,2]
[337304423,1725589841486,-1093.499482,0.00021036,2]
[337304424,1725589841499,-1093.499482,0.00021036,2]
[337304425,1725589841509,-208.233196,0.00021036,2]
[337304426,1725589841518,-208.233196,0.00021036,2]
[337304427,1725589841528,-500.0,0.00021044,2]
[337304428,1725589841538,-500.0,0.00021044,2]
[337304429,1725589841547,-500.0,0.00021045,2]
[337304430,1725589841557,-500.0,0.00021045,2]
[337304431,1725589841566,-500.0,0.00021045,2]
[337304432,1725589841576,-500.0,0.00021045,2]
[337304433,1725589841585,-500.0,0.00021045,2]
[337304434,1725589841594,-500.0,0.00021045,2]
[337304435,1725589841603,-500.0,0.00021045,2]
[337304436,1725589841613,-500.0,0.00021045,2]
[337304437,1725589841624,-500.0,0.00021045,2]
[337304438,1725589841633,-500.0,0.00021045,2]
[337304439,1725589841642,-500.0,0.00021045,2]
[337304440,1725589841652,-183.81986023,0.00021045,2]
[337304441,1725589841663,-500.0,0.00021045,2]
[337304442,1725589841673,-500.0,0.00021045,2]
[337304443,1725589841682,-500.0,0.00021045,2]
[337304444,1725589841692,-500.0,0.00021045,2]
[337304445,1725589841701,-500.0,0.00021045,2]
[337304446,1725589841711,-229.45510178,0.00021045,2]
[337304447,1725589841720,-151.0,0.00021045,2]
[337304448,1725589841730,-151.0,0.00021045,2]
[337304449,1725589841856,-500.0,0.00021059,2]
[337304450,1725589841866,-548.61351528,0.00021065,2]
[337304451,1725589841878,-507.39852021,0.00021065,2]
[337304452,1725589841887,-500.0,0.00021065,2]
[337304453,1725589841896,-1744.55,0.00021065,2]
[337304454,1725589841906,-590.12,0.00021065,2]
[337304455,1725589841920,-25691.57,0.00021065,2]
[337304456,1725589841930,-500.0,0.00021066,2]
[337304457,1725589841940,-500.0,0.00021066,2]
[337304458,1725589841949,-151.0,0.00021066,2]
[337304459,1725589841959,-151.0,0.00021066,2]
[337304460,1725589841968,-271.627051,0.00021066,2]
[337304461,1725589841978,-500.0,0.00021066,2]
[337304462,1725589841987,-500.0,0.00021066,2]
[337304463,1725589841996,-837.09,0.00021067,2]
[337304464,1725589842006,-1878.15,0.00021068,2]
[337304465,1725589842015,-527.70758878,0.00021068,2]
[337304466,1725589842025,-500.0,0.00021068,2]
[337304467,1725589842035,-500.0,0.00021068,2]
[337304468,1725589842044,-500.0,0.00021068,2]
[337304469,1725589842054,-1988.93,0.00021068,2]
[337304470,1725589842063,-500.0,0.0002107,2]
[337304471,1725589842072,-227.08039559,0.0002107,2]
[337304472,1725589842082,-500.0,0.0002107,2]
[337304473,1725589842091,-634.3813728,0.0002107,2]
[337304474,1725589842101,-761.4,0.0002107,2]
[337304475,1725589842111,-500.0,0.0002107,2]
[337304476,1725589842122,-500.0,0.0002107,2]
[337304477,1725589842131,-505.84,0.0002107,2]
[337304478,1725589842141,-500.0,0.0002107,2]
[337304479,1725589842150,-155.250692,0.00021072,2]
[337304480,1725589842160,-161.18013156,0.00021073,2]
[337304481,1725589842169,-279.07732929,0.00021073,2]
[337304482,1725589842179,-500.31379239,0.00021073,2]
[337304483,1725589842189,-501.01247489,0.00021073,2]
[337304484,1725589842198,-156.99552443,0.00021073,2]
[337304485,1725589842208,-235.38838712,0.00021073,2]
[337304486,1725589842219,-158.68822722,0.00021073,2]
[337304487,1725589842229,-197.31685468,0.00021073,2]
[337304488,1725589842238,-500.0,0.00021073,2]
[337304489,1725589842248,-277.96767628,0.00021073,2]
[337304490,1725589842257,-1377.691694,0.000211,2]
[337304491,1725589842268,-151.0,0.000211,2]
[337304492,1725589842279,-151.0,0.000211,2]
[337304493,1725589842290,-151.0,0.000211,2]
[337304494,1725589842299,-151.0,0.000211,2]
[337304495,1725589842309,-151.0,0.000211,2]
[337304496,1725589842320,-151.0,0.000211,2]
[337304497,1725589842331,-156.081052,0.000211,2]
[337304498,1725589842341,-1093.499482,0.000211,2]
[337304499,1725589842352,-1093.499482,0.000211,2]
[337304500,1725589842362,-208.233196,0.000211,2]
[337304501,1725589842372,-208.233196,0.000211,2]
[337304502,1725589842382,-150.112234,0.000213,4]
[337304503,1725589842391,-500.0,0.00021333,2]
[337304504,1725589842401,-1744.55,0.00021338,2]
[337304505,1725589842411,-264.43828329,0.00021339,2]
[337304506,1725589842421,-590.12,0.00021339,2]
[337304507,1725589842431,-25691.57,0.00021339,2]
[337304508,1725589842440,-506.39592376,0.0002134,2]
[337304509,1725589842450,-500.0,0.0002134,2]
[337304510,1725589842460,-500.0,0.0002134,2]
[337304511,1725589842470,-500.0,0.0002134,2]
[337304512,1725589842480,-837.09,0.00021341,2]
[337304513,1725589842490,-1878.15,0.00021342,2]
[337304514,1725589842499,-500.0,0.00021342,2]
[337304515,1725589842508,-500.0,0.00021342,2]
[337304516,1725589842518,-500.0,0.00021342,2]
[337304517,1725589842528,-1988.93,0.00021342,2]
[337304518,1725589842538,-1744.55,0.00021343,2]
[337304519,1725589842548,-508.25915909,0.00021344,2]
[337304520,1725589842558,-500.0,0.00021344,2]
[337304521,1725589842568,-761.4,0.00021344,2]
[337304522,1725589842578,-500.0,0.00021344,2]
[337304523,1725589842588,-500.0,0.00021344,2]
[337304524,1725589842597,-151.0,0.00021344,2]
[337304525,1725589842607,-505.84,0.00021344,2]
[337304526,1725589842616,-151.0,0.00021344,2]
[337304527,1725589842626,-500.0,0.00021344,2]
[337304528,1725589842636,-500.0,0.00021607,2]
[337304529,1725589842646,-590.12,0.00021613,2]
[337304530,1725589842655,-25691.57,0.00021613,2]
[337304531,1725589842665,-500.0,0.00021614,2]
[337304532,1725589842675,-154.049176,0.00021614,2]
[337304533,1725589842684,-156.650702,0.00021614,2]
[337304534,1725589842694,-837.09,0.00021615,2]
[337304535,1725589842704,-1878.15,0.00021616,2]
[337304536,1725589842713,-500.0,0.00021616,2]
[337304537,1725589842724,-500.0,0.00021616,2]
[337304538,1725589842733,-500.0,0.00021616,2]
[337304539,1725589842742,-1988.93,0.00021616,2]
[337304540,1725589842752,-500.0,0.00021618,2]
[337304541,1725589842761,-761.4,0.00021618,2]
[337304542,1725589842770,-500.0,0.00021618,2]
[337304543,1725589842780,-500.0,0.00021618,2]
[337304544,1725589842790,-505.84,0.00021618,2]
[337304545,1725589842801,-553.64941044,0.00021618,2]
[337304546,1725589842820,-1744.55,0.00021619,2]
[337304547,1725589842831,-401.33349491,0.00021621,2]
[337304548,1725589842842,-590.12,0.00021887,2]
[337304549,1725589842853,-25691.57,0.00021887,2]
[337304550,1725589842863,-500.0,0.00021888,2]
[337304551,1725589842874,-151.0,0.00021888,2]
[337304552,1725589842884,-837.09,0.00021889,2]
[337304553,1725589842894,-1878.15,0.0002189,2]
[337304554,1725589842905,-500.0,0.0002189,2]
[337304555,1725589842915,-500.0,0.0002189,2]
[337304556,1725589842924,-500.0,0.0002189,2]
[337304557,1725589842934,-1988.93,0.0002189,2]
[337304558,1725589842944,-500.0,0.00021892,2]
[337304559,1725589842954,-761.4,0.00021892,2]
[337304560,1725589842963,-428.40162697,0.00021892,2]
[337304561,1725589842973,-500.0,0.00021892,2]
[337304562,1725589842983,-505.84,0.00021892,2]
[337304563,1725589842993,-506.6323495,0.00021917,2]
[337304564,1725589843002,-500.0,0.00021917,2]
[337304565,1725589843012,-535.67360744,0.00021917,2]
[337304566,1725589843021,-1000.0,0.00021917,2]
[337304567,1725589843031,-1000.0,0.00021917,2]
[337304568,1725589843041,-1000.0,0.00021917,2]
[337304569,1725589843051,-1000.0,0.00021917,2]
[337304570,1725589843061,-1000.0,0.00021917,2]
[337304571,1725589843071,-1744.55,0.00021917,2]
[337304572,1725589843082,-151.0,0.00021918,7]
[337304573,1725589843092,-151.0,0.00021918,7]
[337304574,1725589843104,-151.0,0.00021918,7]
[337304575,1725589843115,-151.0,0.00021918,7]
[337304576,1725589843126,-151.0,0.00021918,7]
[337304577,1725589843136,-151.0,0.00021918,7]
[337304578,1725589843146,-1093.499482,0.00021918,7]
[337304579,1725589843156,-1093.499482,0.00021918,7]
[337304580,1725589843166,-208.233196,0.00021918,7]
[337304581,1725589843176,-208.233196,0.00021918,7]
[337304582,1725589843186,-500.0,0.00021918,2]
[337304583,1725589843196,-500.0,0.00021918,2]
[337304584,1725589843205,-500.0,0.00021918,2]
[337304585,1725589843216,-500.0,0.00021918,2]
[337304586,1725589843232,-500.0,0.00021918,2]
[337304587,1725589843248,-500.0,0.00021918,2]
[337304588,1725589843264,-500.0,0.00021918,2]
[337304589,1725589843281,-500.0,0.00021918,2]
[337304590,1725589843294,-500.0,0.00021918,2]
[337304591,1725589843305,-500.0,0.00021918,2]
[337304592,1725589843319,-500.0,0.00021918,2]
[337304593,1725589843333,-208.1792508,0.00021918,2]
[337304594,1725589843347,-500.0,0.00021918,2]
[337304595,1725589843360,-500.0,0.00021918,2]
[337304596,1725589843373,-500.0,0.00021918,2]
[337304597,1725589843387,-289.80093242,0.00021918,2]
[337304598,1725589843400,-500.0,0.00021918,2]
[337304599,1725589843413,-500.0,0.00021918,2]
[337304600,1725589843426,-500.0,0.00021918,2]
[337304601,1725589843438,-500.0,0.00021918,2]
[337304602,1725589843451,-500.0,0.00021918,2]
[337304603,1725589843463,-500.0,0.00021918,2]
[337304604,1725589843475,-500.0,0.00021918,2]
[337304605,1725589843486,-500.0,0.00021918,2]
[337304606,1725589843497,-500.0,0.00021918,2]
[337304607,1725589843510,-500.0,0.00021918,2]
[337304608,1725589843523,-500.0,0.00021918,2]
[337304609,1725589843535,-500.0,0.00021918,2]
[337304610,1725589843546,-500.0,0.00021918,2]
[337304611,1725589843559,-500.0,0.00021918,2]
[337304612,1725589843570,-434.92,0.00022145,3]
[337304613,1725589843583,-1739.68,0.00022146,3]
[337304614,1725589843594,-869.84,0.00022146,3]
[337304615,1725589843606,-590.12,0.00022161,2]
[337304616,1725589843618,-25691.57,0.00022161,2]
[337304617,1725589843631,-1000.0,0.00022162,2]
[337304618,1725589843643,-837.09,0.00022163,2]
[337304619,1725589843653,-1878.15,0.00022164,2]
[337304623,1725589843667,-500.0,0.00022164,2]
[337304627,1725589843680,-500.0,0.00022164,2]
[337304630,1725589843692,-500.0,0.00022164,2]
[337304633,1725589843704,-1988.93,0.00022164,2]
[337304636,1725589843716,-1744.55,0.00022165,2]
[337304637,1725589843729,-1744.55,0.00022165,2]
[337304638,1725589843742,-1744.55,0.00022165,2]
[337304639,1725589843753,-1744.55,0.00022165,2]
[337304640,1725589843765,-1744.61,0.00022165,2]
[337304641,1725589843777,-500.0,0.00022166,2]
[337304642,1725589843789,-761.4,0.00022166,2]
[337304643,1725589843801,-500.0,0.00022166,2]
[337304644,1725589843815,-324.636438,0.00022166,7]
[337304645,1725589843827,-324.636438,0.00022166,7]
[337304646,1725589843841,-241.600638,0.00022166,7]
[337304647,1725589843853,-151.0,0.00022166,7]
[337304648,1725589843863,-505.84,0.00022166,2]
[337304649,1725589843875,-151.0,0.00022166,7]
[337304650,1725589843888,-1145.92043445,0.000222,2]
[337304651,1725589843900,-156.0,0.000222,7]
[337304652,1725589843914,-590.12,0.00022435,2]
[337304653,1725589843928,-25691.57,0.00022435,2]
[337304654,1725589843939,-151.0,0.00022436,7]
[337304655,1725589843949,-1000.0,0.00022436,2]
[337304656,1725589843960,-837.09,0.00022437,2]
[337304657,1725589843970,-1878.15,0.00022438,2]
[337304658,1725589843981,-500.0,0.00022438,2]
[337304659,1725589843992,-325.2545,0.00022438,2]
[337304660,1725589844004,-1988.93,0.00022438,2]
[337304661,1725589844017,-761.4,0.0002244,2]
[337304662,1725589844028,-500.0,0.0002244,2]
[337304663,1725589844038,-505.84,0.0002244,2]
[337304664,1725589844049,-151.0,0.00022442,7]
[337304665,1725589844059,-253.62258838,0.00022684,2]
[337304666,1725589844070,-189.149911,0.000227,7]
[337304667,1725589844083,-151.0,0.000227,7]
[337304668,1725589844094,-163.308927,0.000227,7]
[337304669,1725589844105,-151.0,0.000227,7]
[337304670,1725589844116,-151.0,0.000227,7]
[337304671,1725589844128,-151.0,0.000227,7]
[337304672,1725589844139,-151.0,0.000227,7]
[337304673,1725589844152,-1093.499482,0.000227,7]
[337304674,1725589844164,-1093.499482,0.000227,7]
[337304675,1725589844175,-208.233196,0.000227,7]
[337304676,1725589844187,-208.233196,0.000227,7]
[337304677,1725589844199,-590.12,0.00022709,2]
[337304678,1725589844210,-25691.57,0.00022709,2]
[337304679,1725589844222,-1000.0,0.0002271,2]
[337304680,1725589844233,-837.09,0.00022711,2]
[337304681,1725589844245,-1878.15,0.00022712,2]
[337304682,1725589844257,-500.0,0.00022712,2]
[337304683,1725589844270,-1988.93,0.00022712,2]
[337304684,1725589844284,-761.4,0.00022714,2]
[337304686,1725589844295,-500.0,0.00022714,2]
[337304689,1725589844307,-324.636438,0.00022714,7]
[337304693,1725589844319,-324.636438,0.00022714,7]
[337304696,1725589844331,-505.84,0.00022714,2]
[337304699,1725589844342,-427.138,0.00022794,2]
[337304702,1725589844355,-3200.0,0.00022794,2]
[337304705,1725589844368,-752.27,0.000228,14]
[337304706,1725589844381,-500.90071859,0.00022813,2]
[337304707,1725589844392,-500.30246099,0.00022813,2]
[337304708,1725589844404,-500.42384969,0.00022813,2]
[337304709,1725589844416,-420.0,0.00022862,2]
[337304710,1725589844429,-500.6441323,0.00022938,2]
[337304711,1725589844441,-590.12,0.00022983,2]
[337304712,1725589844453,-25691.57,0.00022983,2]
[337304713,1725589844464,-697.92655148,0.00022984,2]
[337304714,1725589844476,-837.09,0.00022985,2]
[337304715,1725589844487,-1878.15,0.00022986,2]
[337304716,1725589844498,-500.0,0.00022986,2]
[337304717,1725589844509,-1988.93,0.00022986,2]
[337304718,1725589844521,-761.4,0.00022988,2]
[337304719,1725589844532,-500.0,0.00022988,2]
[337304720,1725589844544,-505.84,0.00022988,2]
[337304721,1725589844556,-1000.0,0.00023,2]
[337304722,1725589844567,-150.112233,0.00023,4]
[337304723,1725589844578,-201.0,0.00023,2]
[337304724,1725589844590,-393.0,0.00023,2]
[337304725,1725589844602,-590.12,0.00023257,2]
[337304726,1725589844613,-25691.57,0.00023257,2]
[337304727,1725589844624,-837.09,0.00023259,2]
[337304728,1725589844637,-1878.15,0.0002326,2]
[337304729,1725589844648,-500.0,0.0002326,2]
[337304730,1725589844659,-1988.93,0.0002326,2]
[337304731,1725589844670,-761.4,0.00023262,2]
[337304732,1725589844681,-500.0,0.00023262,2]
[337304733,1725589844693,-151.0,0.00023262,7]
[337304734,1725589844707,-151.0,0.00023262,7]
[337304735,1725589844719,-505.84,0.00023262,2]
[337304736,1725589844731,-871.72065372,0.0002327,2]
[337304737,1725589844742,-393.0,0.00023288,2]
[337304738,1725589844754,-150.112233,0.000233,2]
[337304739,1725589844766,-1008.39123487,0.0002349,2]
[337304740,1725589844778,-590.12,0.00023531,2]
[337304741,1725589844790,-25691.57,0.00023531,2]
[337304742,1725589844801,-151.0,0.00023532,7]
[337304743,1725589844812,-233.166546,0.00023532,7]
[337304744,1725589844823,-837.09,0.00023533,2]
[337304745,1725589844834,-1878.15,0.00023534,2]
[337304746,1725589844991,-500.0,0.00023534,2]
[337304747,1725589845001,-1988.93,0.00023534,2]
[337304748,1725589845011,-761.4,0.00023536,2]
[337304749,1725589845021,-151.0,0.00023536,7]
[337304750,1725589845031,-151.0,0.00023536,7]
[337304751,1725589845040,-300.155284,0.00023536,7]
[337304752,1725589845050,-151.0,0.00023536,7]
[337304753,1725589845059,-151.0,0.00023536,7]
[337304754,1725589845070,-187.45689495,0.00023536,2]
[337304755,1725589845080,-1093.499482,0.00023536,7]
[337304756,1725589845089,-1093.499482,0.00023536,7]
[337304757,1725589845099,-208.233196,0.00023536,7]
[337304758,1725589845108,-208.233196,0.00023536,7]
[337304759,1725589845118,-505.84,0.00023536,2]
[337304760,1725589845128,-1000.0,0.00023692,2]
[337304761,1725589845139,-590.12,0.00023805,2]
[337304762,1725589845149,-25691.57,0.00023805,2]
[337304763,1725589845159,-837.09,0.00023807,2]
[337304764,1725589845168,-324.636438,0.00023807,7]
[337304765,1725589845178,-324.636438,0.00023807,7]
[337304766,1725589845188,-1878.15,0.00023808,2]
[337304767,1725589845198,-500.0,0.00023808,2]
[337304768,1725589845207,-1988.93,0.00023808,2]
[337304769,1725589845217,-761.4,0.0002381,2]
[337304770,1725589845227,-505.84,0.0002381,2]
[337304771,1725589845237,-203.29776746,0.00023815,2]
[337304772,1725589845246,-176.30786211,0.00023815,2]
[337304773,1725589845255,-500.89915819,0.00023816,9]
[337304774,1725589845265,-500.0,0.00023816,9]
[337304775,1725589845279,-491.67262316,0.00023863,2]
[337304776,1725589845289,-730.74581537,0.00023926,2]
[337304777,1725589845298,-20000.0,0.00024067,3]
[337304778,1725589845308,-590.12,0.00024079,2]
[337304779,1725589845319,-25691.57,0.00024079,2]
[337304780,1725589845329,-151.0,0.0002408,7]
[337304781,1725589845338,-837.09,0.00024081,2]
[337304782,1725589845348,-1878.15,0.00024082,2]
[337304783,1725589845359,-500.0,0.00024082,2]
[337304784,1725589845368,-1988.93,0.00024082,2]
[337304785,1725589845378,-761.4,0.00024084,2]
[337304786,1725589845388,-151.0,0.00024084,7]
[337304787,1725589845398,-151.0,0.00024084,7]
[337304788,1725589845408,-505.84,0.00024084,2]
[337304789,1725589845417,-393.0,0.00024164,2]
[337304790,1725589845426,-150.112234,0.000243,5]
[337304791,1725589845436,-590.12,0.00024353,2]
[337304792,1725589845447,-25691.57,0.00024353,2]
[337304793,1725589845456,-837.09,0.00024355,2]
[337304794,1725589845465,-1878.15,0.00024356,2]
[337304795,1725589845476,-500.0,0.00024356,2]
[337304796,1725589845486,-1988.93,0.00024356,2]
[337304797,1725589845496,-761.4,0.00024358,2]
[337304798,1725589845507,-151.0,0.00024358,7]
[337304799,1725589845517,-205.998273,0.00024358,7]
[337304800,1725589845527,-236.271175,0.00024358,7]
[337304801,1725589845537,-223.920486,0.00024358,7]
[337304802,1725589845548,-1093.499482,0.00024358,7]
[337304803,1725589845558,-1093.499482,0.00024358,7]
[337304804,1725589845569,-208.233196,0.00024358,7]
[337304805,1725589845579,-208.233196,0.00024358,7]
[337304806,1725589845589,-505.84,0.00024358,2]
[337304807,1725589845599,-402.00712399,0.00024383,2]
[337304808,1725589845610,-324.636438,0.00024627,7]
[337304809,1725589845620,-324.636438,0.00024627,7]
[337304810,1725589845630,-590.12,0.00024627,2]
[337304811,1725589845640,-25691.57,0.00024627,2]
[337304812,1725589845650,-837.09,0.00024629,2]
[337304813,1725589845660,-1878.15,0.0002463,2]
[337304814,1725589845670,-500.0,0.0002463,2]
[337304815,1725589845679,-1988.93,0.0002463,2]
[337304816,1725589845689,-761.4,0.00024632,2]
[337304817,1725589845699,-505.84,0.00024632,2]
[337304818,1725589845708,-380.0,0.00024658,2]
[337304819,1725589845718,-200.0,0.00024658,15]
[337304820,1725589845728,-6557.88196578,0.000247,14]
[337304825,1725589845822,-4849.67855773,0.000247,14]
[337304826,1725589845838,-133557.11947649,0.000247,14]
[337304827,1725589845848,-188.508589,0.000247,7]
[337304828,1725589845857,-151.0,0.000247,7]
[337304829,1725589845867,-1093.499482,0.000247,7]
[337304831,1725589845877,-1093.499482,0.000247,7]
[337304832,1725589845887,-208.233196,0.000247,7]
[337304833,1725589845896,-208.233196,0.000247,7]
[337304835,1725589845906,-324.636438,0.000247,7]
[337304836,1725589845915,-324.636438,0.000247,7]
[337304837,1725589845926,-151.0,0.000247,7]
[337304838,1725589845936,-151.0,0.000247,7]
[337304839,1725589845946,-515.0,0.000249,2]
[337304840,1725589845956,-590.12,0.00024901,2]
[337304841,1725589845966,-25691.57,0.00024901,2]
[337304842,1725589845975,-837.09,0.00024903,2]
[337304843,1725589845986,-1878.15,0.00024904,2]
[337304845,1725589845996,-500.0,0.00024904,2]
[337304847,1725589846005,-1988.93,0.00024904,2]
[337304848,1725589846015,-761.4,0.00024906,2]
[337304850,1725589846024,-505.84,0.00024906,2]
[337304852,1725589846034,-1031.4938692,0.00025,2]
[337304853,1725589846044,-1000.0,0.00025,2]
[337304854,1725589846054,-587.0,0.00025149,2]
[337304855,1725589846064,-590.12,0.00025175,2]
[337304856,1725589846074,-25691.57,0.00025175,2]
[337304857,1725589846084,-837.09,0.00025177,2]
[337304858,1725589846094,-533.78176599,0.00025178,2]
[337304859,1725589846110,-1344.36823401,0.00025178,2]
[337304860,1725589846120,-500.0,0.00025178,2]
[337304861,1725589846131,-1988.93,0.00025178,2]
[337304862,1725589846140,-761.4,0.0002518,2]
[337304863,1725589846150,-505.84,0.0002518,2]
[337304864,1725589846161,-752.27,0.000252,14]
[337304865,1725589846170,-394.0,0.00025373,2]
[337304866,1725589846180,-590.12,0.00025449,2]
[337304867,1725589846190,-25691.57,0.00025449,2]
[337304868,1725589846199,-837.09,0.00025451,2]
[337304869,1725589846209,-1878.15,0.00025452,2]
[337304870,1725589846219,-500.0,0.00025452,2]
[337304871,1725589846229,-1988.93,0.00025452,2]
[337304872,1725589846238,-761.4,0.00025454,2]
[337304873,1725589846249,-505.84,0.00025454,2]
[337304874,1725589846258,-900.0,0.00025469,3]
[337304875,1725589846268,-168.92930936,0.00025528,2]
[337304876,1725589846279,-500.0,0.00025561,2]
[337304877,1725589846290,-500.96720055,0.00025561,2]
[337304878,1725589846300,-756.06363032,0.00025683,8]
[337304879,1725589846308,-590.12,0.00025723,2]
[337304880,1725589846319,-25691.57,0.00025723,2]
[337304881,1725589846329,-837.09,0.00025725,2]
[337304882,1725589846339,-1878.15,0.00025726,2]
[337304883,1725589846349,-500.0,0.00025726,2]
[337304884,1725589846359,-1988.93,0.00025726,2]
[337304885,1725589846369,-761.4,0.00025728,2]
[337304886,1725589846380,-151.0,0.00025728,7]
[337304887,1725589846391,-1093.499482,0.00025728,7]
[337304888,1725589846401,-1093.499482,0.00025728,7]
[337304889,1725589846411,-208.233196,0.00025728,7]
[337304890,1725589846421,-208.233196,0.00025728,7]
[337304891,1725589846430,-324.636438,0.00025728,7]
[337304892,1725589846441,-324.636438,0.00025728,7]
[337304893,1725589846450,-164.372256,0.00025728,7]
[337304894,1725589846460,-151.0,0.00025728,7]
[337304895,1725589846470,-505.84,0.00025728,2]
[337304896,1725589846482,-756.06363032,0.0002594,8]
[337304897,1725589846492,-590.12,0.00025997,2]
[337304898,1725589846501,-25691.57,0.00025997,2]
[337304899,1725589846510,-837.09,0.00025999,2]
[337304900,1725589846520,-1878.15,0.00026,2]
[337304901,1725589846531,-500.0,0.00026,2]